fUSD/lending_fUSD_20240126
["ID","MTS","AMOUNT","RATE_DAILY","PERIOD"]
[312825569,1706302246274,-1594.269902,0.000509,14]
[312825570,1706302246283,-193.144534,0.000509,14]
[312825571,1706302246292,-193.144534,0.000509,14]
[312825572,1706302246302,-154.187394,0.000509,14]
[312825573,1706302246312,-151.0,0.000509,14]
[312825574,1706302246321,-154.187394,0.000509,14]
[312825576,1706302246330,-1273.617165,0.000509,2]
[312825577,1706302246339,-151.0,0.000509,14]
[312825578,1706302246349,-151.0,0.000509,14]
[312825579,1706302246358,-991.404627,0.000509,14]
[312825580,1706302246368,-151.0,0.000509,14]
[312825581,1706302246378,-991.404627,0.000509,14]
[312825582,1706302246387,-150.0,0.00050932,30]
[312825583,1706302246397,-150.0,0.00050999,60]
[312825584,1706302246406,-50000.0,0.00051,41]
[312825585,1706302246415,-300.0,0.00051,52]
[312825586,1706302246425,-1000.0,0.00051,120]
[312825587,1706302246434,-162.0,0.00051,120]
[312825588,1706302246444,-185.0,0.00051,120]
[312825589,1706302246453,-171.0,0.00051,120]
[312825590,1706302246463,-150.0,0.00051055,30]
[312825591,1706302246473,-274.33,0.00051125,120]
[312825592,1706302246483,-5000.0,0.00051125,120]
[312825593,1706302246492,-150.0,0.00051177,30]
[312825594,1706302246502,-150.0,0.00051233,60]
[312825595,1706302246512,-151.0,0.00051233,30]
[312825596,1706302246521,-172.22,0.00051233,30]
[312825597,1706302246531,-150.0,0.00051233,30]
[312825598,1706302246540,-418.78,0.00051233,30]
[312825599,1706302246550,-152.35,0.00051233,30]
[312825600,1706302246559,-408.9,0.00051233,30]
[312825601,1706302246568,-151.71650754,0.00051299,2]
[312825602,1706302246577,-864.25542996,0.000513,2]
[312825603,1706302246587,-150.0,0.000513,30]
[312825604,1706302246596,-200.0,0.000514,29]
[312825605,1706302246605,-150.0,0.00051423,30]
[312825607,1706302246614,-478.73551129,0.000515,2]
[312825609,1706302246623,-2912.0,0.000515,2]
[312825611,1706302246633,-5000.0,0.000515,120]
[312825612,1706302246642,-2699.85285835,0.000515,14]
[312825614,1706302246651,-150.0,0.00051545,30]
[312825616,1706302246661,-258.56,0.00051557,120]
[312825618,1706302246670,-638.0,0.0005158,6]
[312825619,1706302246679,-158.10144436,0.000516,120]
[312825620,1706302246688,-306.60095594,0.000516,20]
[312825621,1706302246697,-306.60095594,0.000516,21]
[312825622,1706302246707,-306.60095594,0.000516,18]
[312825623,1706302246716,-306.60095594,0.000516,22]
[312825624,1706302246725,-306.60095594,0.000516,19]
[312825625,1706302246734,-306.60095594,0.000516,19]
[312825626,1706302246743,-306.60095594,0.000516,19]
[312825627,1706302246753,-306.60095594,0.000516,20]
[312825628,1706302246762,-306.60095594,0.000516,18]
[312825629,1706302246771,-306.60095594,0.000516,22]
[312825630,1706302246783,-306.60095594,0.000516,19]
[312825631,1706302246792,-306.60095594,0.000516,22]
[312825632,1706302246801,-306.60095594,0.000516,19]
[312825633,1706302246810,-306.60095594,0.000516,21]
[312825634,1706302246819,-306.60095594,0.000516,22]
[312825635,1706302246828,-306.60095594,0.000516,21]
[312825636,1706302246837,-306.60095594,0.000516,22]
[312825637,1706302246846,-306.60095594,0.000516,22]
[312825638,1706302246856,-306.60095594,0.000516,21]
[312825639,1706302246866,-306.60095594,0.000516,21]
[312825640,1706302246875,-306.60095594,0.000516,20]
[312825641,1706302246884,-306.60095594,0.000516,21]
[312825642,1706302246893,-306.60095594,0.000516,18]
[312825643,1706302246902,-306.60095594,0.000516,19]
[312825644,1706302246911,-306.60095594,0.000516,21]
[312825645,1706302246920,-306.60095594,0.000516,19]
[312825646,1706302246929,-306.60095594,0.000516,22]
[312825647,1706302246938,-306.60095594,0.000516,22]
[312825648,1706302246948,-306.60095594,0.000516,18]
[312825649,1706302246957,-306.60095594,0.000516,21]
[312825650,1706302246967,-306.60095594,0.000516,22]
[312825651,1706302246976,-306.60095594,0.000516,21]
[312825652,1706302246985,-306.60095594,0.000516,22]
[312825653,1706302246995,-306.60095594,0.000516,21]
[312825654,1706302247004,-306.60095594,0.000516,21]
[312825655,1706302247014,-306.60095594,0.000516,19]
[312825656,1706302247023,-306.60095594,0.000516,20]
[312825657,1706302247033,-306.60095594,0.000516,19]
[312825658,1706302247042,-306.60095594,0.000516,18]
[312825659,1706302247150,-306.60095594,0.000516,22]
[312825660,1706302247159,-306.60095594,0.000516,21]
[312825661,1706302247168,-306.60095594,0.000516,18]
[312825662,1706302247178,-306.60095594,0.000516,19]
[312825663,1706302247187,-306.60095594,0.000516,21]
[312825664,1706302247197,-306.60095594,0.000516,19]
[312825665,1706302247207,-306.60095594,0.000516,20]
[312825666,1706302247216,-306.60095594,0.000516,21]
[312825667,1706302247225,-306.60095594,0.000516,22]
[312825668,1706302247235,-306.60095594,0.000516,22]
[312825669,1706302247245,-306.60095594,0.000516,18]
[312825670,1706302247254,-306.60095594,0.000516,18]
[312825671,1706302247263,-306.60095594,0.000516,22]
[312825672,1706302247273,-306.60095594,0.000516,19]
[312825673,1706302247282,-306.60095594,0.000516,20]
[312825674,1706302247291,-306.60095594,0.000516,22]
[312825675,1706302247300,-306.60095594,0.000516,21]
[312825676,1706302247311,-306.60095594,0.000516,22]
[312825677,1706302247321,-306.60095594,0.000516,19]
[312825678,1706302247330,-306.60095594,0.000516,19]
[312825679,1706302247340,-306.60095594,0.000516,20]
[312825680,1706302247350,-306.60095594,0.000516,19]
[312825681,1706302247360,-306.60095594,0.000516,22]
[312825682,1706302247370,-306.60095594,0.000516,18]
[312825683,1706302247379,-306.60095594,0.000516,19]
[312825684,1706302247389,-306.60095594,0.000516,22]
[312825685,1706302247399,-306.60095594,0.000516,20]
[312825686,1706302247409,-306.60095594,0.000516,19]
[312825687,1706302247418,-306.60095594,0.000516,22]
[312825688,1706302247428,-306.60095594,0.000516,19]
[312825689,1706302247437,-306.60095594,0.000516,19]
[312825690,1706302247446,-306.60095594,0.000516,18]
[312825691,1706302247455,-306.60095594,0.000516,19]
[312825692,1706302247464,-306.60095594,0.000516,18]
[312825693,1706302247474,-306.60095594,0.000516,18]
[312825694,1706302247483,-306.60095594,0.000516,21]
[312825695,1706302247493,-306.60095594,0.000516,22]
[312825696,1706302247502,-306.60095594,0.000516,20]
[312825697,1706302247511,-306.60095594,0.000516,20]
[312825698,1706302247521,-306.60095594,0.000516,20]
[312825699,1706302247530,-306.60095594,0.000516,21]
[312825700,1706302247539,-150.33,0.00051633,2]
[312825701,1706302247548,-150.0,0.00051668,30]
[312825702,1706302247558,-2251.77564656,0.00051725,49]
[312825703,1706302247567,-17056.0,0.0005179,2]
[312825704,1706302247577,-8459.0,0.0005179,2]
[312825705,1706302247586,-150.0,0.00051791,30]
[312825706,1706302247596,-150.0,0.000518,30]
[312825707,1706302247605,-8760.57156777,0.00051848,31]
[312825708,1706302247614,-190.35028038,0.00051863,11]
[312825709,1706302247623,-150.0,0.00051863,11]
[312825710,1706302247632,-6752.0001885,0.00051864,2]
[312825711,1706302247642,-2916.8596631,0.00051864,2]
[312825712,1706302247651,-247.6127323,0.00051864,2]
[312825713,1706302247660,-84252.2746,0.00051864,2]
[312825714,1706302247670,-4404.2400135,0.00051864,2]
[312825715,1706302247679,-71605.6489139,0.00051864,2]
[312825716,1706302247688,-4560.2193974,0.00051864,2]
[312825717,1706302247697,-3000.0,0.00051868,11]
[312825718,1706302247707,-5000.0,0.00051875,120]
[312825719,1706302247716,-29607.98949995,0.00051878,2]
[312825720,1706302247725,-79895.6154434,0.00051881,2]
[312825721,1706302247734,-3488.15490041,0.000519,30]
[312825722,1706302247744,-196707.00004968,0.000519,30]
[312825723,1706302247753,-300.0,0.000519,30]
[312825724,1706302247762,-200.0,0.000519,30]
[312825725,1706302247771,-150.0,0.00051914,30]
[312825726,1706302247783,-150.0,0.00051928,60]
[312825727,1706302247792,-200.0,0.00051987,11]
[312825728,1706302247801,-76067.72538935,0.0005199,7]
[312825729,1706302247811,-227.234968,0.0005199,14]
[312825730,1706302247820,-151.0,0.0005199,14]
[312825731,1706302247829,-151.0,0.0005199,14]
[312825732,1706302247839,-151.0,0.0005199,14]
[312825733,1706302247848,-151.0,0.0005199,14]
[312825734,1706302247858,-168.589193,0.0005199,14]
[312825735,1706302247868,-168.589193,0.0005199,14]
[312825736,1706302247877,-1557.173901,0.0005199,14]
[312825737,1706302247887,-151.0,0.0005199,14]
[312825738,1706302247896,-1557.173901,0.0005199,14]
[312825739,1706302247905,-151.0,0.0005199,14]
[312825740,1706302247914,-151.0,0.0005199,14]
[312825741,1706302247923,-1594.269902,0.0005199,14]
[312825742,1706302247932,-1594.269902,0.0005199,14]
[312825743,1706302247944,-193.144534,0.0005199,14]
[312825744,1706302247953,-193.144534,0.0005199,14]
[312825745,1706302247962,-154.187394,0.0005199,14]
[312825746,1706302247971,-154.187394,0.0005199,14]
[312825747,1706302247980,-2010.0,0.0005199,2]
[312825748,1706302247990,-151.0,0.0005199,14]
[312825749,1706302247999,-588.0,0.0005199,2]
[312825750,1706302248009,-991.404627,0.0005199,14]
[312825751,1706302248018,-151.0,0.0005199,14]
[312825752,1706302248028,-991.404627,0.0005199,14]
[312825753,1706302248037,-150.0,0.00051999,60]
[312825754,1706302248046,-50000.0,0.00052,42]
[312825755,1706302248055,-2089.22994738,0.00052,2]
[312825756,1706302248064,-160.0,0.00052,120]
[312825757,1706302248074,-160.0,0.00052,120]
[312825758,1706302248083,-6000.0,0.00052,120]
[312825759,1706302248092,-300.0,0.00052,5]
[312825760,1706302248102,-300.0,0.00052,5]
[312825761,1706302248111,-299.99999903,0.00052,53]
[312825762,1706302248120,-7177.05513271,0.00052,120]
[312825763,1706302248129,-17748.83648125,0.00052,2]
[312825764,1706302248138,-319.39370691,0.00052,30]
[312825765,1706302248147,-150.0,0.00052036,30]
[312825766,1706302248156,-150.0,0.00052054,120]
[312825767,1706302248165,-500.0,0.00052055,30]
[312825768,1706302248174,-392.81296141,0.00052154,29]
[312825769,1706302248183,-150.0,0.00052159,30]
[312825770,1706302248195,-289.782,0.00052212,2]
[312825771,1706302248205,-965.25445452,0.0005224,4]
[312825772,1706302248214,-5000.0,0.0005225,120]
[312825773,1706302248223,-151.36375962,0.00052281,30]
[312825774,1706302248232,-150.0,0.00052282,30]
[312825775,1706302248241,-1500.0,0.00052282,7]
[312825776,1706302248250,-156.400785,0.0005238,14]
[312825777,1706302248259,-337.47,0.0005238,2]
[312825778,1706302248268,-152.0,0.00052381,3]
[312825779,1706302248277,-11365.0,0.0005239,2]
[312825780,1706302248287,-6042.0,0.0005239,2]
[312825781,1706302248297,-200.0,0.000524,30]
[312825782,1706302248306,-150.0,0.00052405,30]
[312825783,1706302248315,-3774.7723707,0.00052427,2]
[312825784,1706302248325,-5589.0433196,0.00052428,2]
[312825785,1706302248334,-2414.4630567,0.00052428,2]
[312825786,1706302248344,-247.6127323,0.00052428,2]
[312825787,1706302248353,-69740.7581999,0.00052428,2]
[312825788,1706302248362,-66134.4850846,0.00052463,2]
[312825789,1706302248371,-3645.6586993,0.00052463,2]
[312825790,1706302248381,-59272.3730056,0.00052463,2]
[312825791,1706302248390,-105102.52391669,0.00052499,5]
[312825792,1706302248399,-5000.0,0.000525,120]
[312825793,1706302248408,-476.78529856,0.000525,30]
[312825794,1706302248417,-150.0,0.00052527,30]
[312825795,1706302248426,-300.0,0.00052548,5]
[312825796,1706302248436,-300.0,0.00052548,5]
[312825797,1706302248448,-153.62602514,0.0005256,54]
[312825798,1706302248457,-1500.0,0.00052585,7]
[312825799,1706302248466,-1500.0,0.00052614,7]
[312825800,1706302248476,-5000.0,0.00052625,120]
[312825801,1706302248485,-150.0,0.0005265,30]
[312825802,1706302248495,-1239.79214921,0.00052695,4]
[312825803,1706302248504,-166.42213739,0.00052697,4]
[312825804,1706302248514,-372.36864719,0.00052698,4]
[312825805,1706302248522,-155.47896354,0.00052699,4]
[312825806,1706302248531,-3220.46717565,0.000527,30]
[312825807,1706302248541,-42399.0,0.000527,30]
[312825808,1706302248550,-150.0,0.00052719,7]
[312825809,1706302248559,-150.0,0.00052722,7]
[312825810,1706302248568,-390.15390898,0.00052739,120]
[312825811,1706302248577,-11425.06,0.0005277,30]
[312825812,1706302248587,-11425.06,0.0005277,30]
[312825813,1706302248596,-11425.06,0.0005277,30]
[312825814,1706302248605,-11425.06,0.0005277,30]
[312825815,1706302248614,-150.0,0.00052773,30]
[312825816,1706302248623,-150.0,0.00052785,7]
[312825817,1706302248632,-6081.0,0.0005279,2]
[312825818,1706302248641,-4738.0,0.0005279,2]
[312825819,1706302248650,-150.0,0.00052798,7]
[312825820,1706302248659,-174.690206,0.000528,31]
[312825821,1706302248667,-150.0,0.00052803,7]
[312825822,1706302248677,-150.0,0.00052822,7]
[312825823,1706302248685,-150.0,0.00052845,7]
[312825824,1706302248696,-2989.3253441,0.00052864,2]
[312825825,1706302248705,-150.0,0.0005288,7]
[312825826,1706302248713,-2887.0773852,0.00052888,2]
[312825827,1706302248724,-46939.0970972,0.00052888,2]
[312825828,1706302248733,-5686.0,0.0005289,2]
[312825829,1706302248743,-910.0,0.0005289,2]
[312825830,1706302248752,-52373.3547258,0.00052891,2]
[312825831,1706302248761,-4426.0864507,0.00052891,2]
[312825832,1706302248770,-1912.0664503,0.00052891,2]
[312825833,1706302248780,-247.6127323,0.00052891,2]
[312825834,1706302248790,-55229.2417999,0.00052891,2]
[312825835,1706302248799,-151.0,0.00052891,14]
[312825836,1706302248808,-991.404627,0.00052891,14]
[312825837,1706302248817,-151.0,0.00052891,14]
[312825838,1706302248826,-991.404627,0.00052891,14]
[312825839,1706302248835,-1500.0,0.00052893,7]
[312825840,1706302248843,-150.0,0.00052895,30]
[312825841,1706302248852,-29607.98949995,0.00052897,2]
[312825842,1706302248863,-300.0,0.000529,31]
[312825843,1706302248873,-168.589193,0.000529,14]
[312825844,1706302248883,-200.0,0.000529,31]
[312825845,1706302248892,-168.589193,0.000529,14]
[312825846,1706302248901,-1557.173901,0.000529,14]
[312825847,1706302248910,-151.0,0.000529,14]
[312825848,1706302248919,-1557.173901,0.000529,14]
[312825849,1706302248928,-151.0,0.000529,14]
[312825850,1706302248939,-151.0,0.000529,14]
[312825851,1706302248948,-1594.269902,0.000529,14]
[312825852,1706302248957,-1594.269902,0.000529,14]
[312825853,1706302248966,-193.144534,0.000529,14]
[312825854,1706302248975,-193.144534,0.000529,14]
[312825855,1706302248984,-154.187394,0.000529,14]
[312825856,1706302248993,-154.187394,0.000529,14]
[312825857,1706302249002,-102911.697,0.000529,30]
[312825858,1706302249011,-150.0,0.00052919,7]
[312825859,1706302249020,-1475.99315294,0.00052922,14]
[312825860,1706302249029,-151.0,0.00052924,14]
[312825861,1706302249039,-151.0,0.00052924,14]
[312825862,1706302249048,-151.0,0.00052924,14]
[312825863,1706302249057,-26871.20094871,0.00052924,120]
[312825864,1706302249066,-151.0,0.00052927,14]
[312825865,1706302249075,-151.0,0.00052949,2]
[312825866,1706302249085,-150.0,0.00052955,7]
[312825867,1706302249094,-150.0,0.0005296,7]
[312825868,1706302249103,-150.0,0.00052984,7]
[312825869,1706302249112,-150.0,0.00052984,7]
[312825870,1706302249121,-200.0,0.00052987,12]
[312825871,1706302249131,-18433.50927285,0.00052998,7]
[312825872,1706302249140,-50000.0,0.00053,43]
[312825873,1706302249149,-300.0,0.00053,54]
[312825874,1706302249158,-5000.0,0.00053,120]
[312825875,1706302249167,-53000.0,0.00053,90]
[312825876,1706302249176,-13747.10294769,0.00053,120]
[312825877,1706302249185,-150.0,0.00053005,7]
[312825878,1706302249196,-160.0,0.00053014,120]
[312825879,1706302249205,-150.0,0.00053018,30]
[312825880,1706302249214,-150.0,0.00053021,7]
[312825881,1706302249223,-150.0,0.00053025,7]
[312825882,1706302249327,-150.0,0.00053026,7]
[312825883,1706302249337,-150.0,0.00053036,7]
[312825884,1706302249347,-11425.06,0.00053044,30]
[312825885,1706302249356,-11425.06,0.00053044,30]
[312825886,1706302249366,-638.0,0.0005307,8]
[312825887,1706302249375,-150.0,0.00053081,7]
[312825888,1706302249384,-300.0,0.00053096,5]
[312825889,1706302249393,-300.0,0.00053096,5]
[312825890,1706302249403,-150.0,0.00053104,7]
[312825891,1706302249412,-150.33,0.00053108,2]
[312825892,1706302249421,-150.0,0.00053109,7]
[312825893,1706302249430,-150.0,0.00053113,7]
[312825894,1706302249440,-150.0,0.0005312,7]
[312825895,1706302249449,-150.0,0.0005313,7]
[312825896,1706302249458,-150.0,0.00053138,7]
[312825897,1706302249467,-150.0,0.00053141,30]
[312825898,1706302249476,-1500.0,0.00053173,7]
[312825899,1706302249486,-160.0,0.00053178,120]
[312825900,1706302249495,-1500.0,0.00053227,7]
[312825901,1706302249504,-150.0,0.00053236,7]
[312825902,1706302249513,-42399.0,0.00053243,30]
[312825903,1706302249522,-150.0,0.00053244,7]
[312825904,1706302249531,-150.0,0.00053253,7]
[312825905,1706302249541,-561.18608561,0.0005326,120]
[312825906,1706302249550,-150.0,0.00053263,7]
[312825907,1706302249559,-150.0,0.00053264,30]
[312825908,1706302249568,-150.0,0.00053288,7]
[312825909,1706302249578,-162.0,0.00053291,120]
[312825910,1706302249587,-171.0,0.00053291,120]
[312825911,1706302249596,-150.0,0.00053292,7]
[312825912,1706302249605,-1500.0,0.0005331,7]
[312825913,1706302249615,-11425.06,0.00053317,30]
[312825914,1706302249626,-11425.06,0.00053317,30]
[312825915,1706302249635,-150.0,0.00053318,7]
[312825916,1706302249645,-150.0,0.0005334,7]
[312825917,1706302249656,-150.0,0.0005334,7]
[312825918,1706302249665,-150.0,0.00053356,7]
[312825919,1706302249675,-150.0,0.00053356,7]
[312825920,1706302249684,-150.0,0.00053365,7]
[312825921,1706302249694,-150.0,0.00053374,7]
[312825922,1706302249703,-5000.0,0.00053375,120]
[312825923,1706302249712,-150.0,0.00053386,30]
[312825924,1706302249722,-150.0,0.00053387,7]
[312825925,1706302249731,-1500.0,0.00053393,7]
[312825926,1706302249740,-1000.0,0.000534,2]
[312825927,1706302249749,-150.0,0.0005341,7]
[312825928,1706302249757,-150.0,0.00053426,7]
[312825929,1706302249767,-150.0,0.00053449,7]
[312825930,1706302249777,-150.0,0.00053451,7]
[312825931,1706302249788,-150.0,0.00053452,7]
[312825932,1706302249797,-150.0,0.00053465,7]
[312825933,1706302249806,-9999.999998,0.0005348,120]
[312825934,1706302249814,-150.0,0.00053481,7]
[312825935,1706302249823,-150.0,0.00053489,7]
[312825936,1706302249833,-153.26103496,0.000535,120]
[312825937,1706302249842,-300.0,0.00053501,7]
[312825938,1706302249851,-300.0,0.00053509,7]
[312825939,1706302249862,-150.0,0.00053509,30]
[312825940,1706302249871,-150.0,0.00053514,7]
[312825941,1706302249880,-150.0,0.00053514,7]
[312825942,1706302249890,-392.81296141,0.00053527,31]
[312825943,1706302249899,-150.0,0.00053528,7]
[312825944,1706302249909,-1500.0,0.00053539,7]
[312825945,1706302249918,-300.0,0.00053548,7]
[312825946,1706302249926,-150.0,0.00053553,7]
[312825947,1706302249936,-150.0,0.00053553,7]
[312825948,1706302249946,-50000.0,0.00053555,14]
[312825949,1706302249954,-150.0,0.00053561,7]
[312825950,1706302249964,-300.0,0.00053566,7]
[312825951,1706302249974,-150.0,0.00053576,7]
[312825952,1706302249983,-150.0,0.00053579,7]
[312825953,1706302249992,-150.0,0.00053589,7]
[312825954,1706302250001,-6440.0,0.0005359,2]
[312825955,1706302250011,-3474.0,0.0005359,2]
[312825956,1706302250020,-11425.06,0.0005359,30]
[312825957,1706302250029,-11425.06,0.0005359,30]
[312825958,1706302250038,-150.0,0.00053594,7]
[312825959,1706302250048,-150.0,0.00053595,7]
[312825960,1706302250057,-300.0,0.0005361,7]
[312825961,1706302250066,-150.0,0.00053614,7]
[312825962,1706302250075,-150.0,0.00053618,7]
[312825963,1706302250084,-2203.8783174,0.00053619,2]
[312825964,1706302250094,-257.70962994,0.00053621,7]
[312825965,1706302250103,-300.0,0.00053626,7]
[312825966,1706302250113,-150.0,0.00053632,30]
[312825967,1706302250122,-150.0,0.00053634,7]
[312825968,1706302250131,-300.0,0.00053642,7]
[312825969,1706302250140,-300.0,0.00053644,5]
[312825970,1706302250149,-300.0,0.00053644,5]
[312825971,1706302250158,-150.0,0.00053647,7]
[312825972,1706302250167,-150.0,0.00053652,7]
[312825973,1706302250176,-3263.1295817,0.00053656,2]
[312825974,1706302250185,-1409.669844,0.00053656,2]
[312825975,1706302250195,-247.6127323,0.00053656,2]
[312825976,1706302250204,-40717.7253999,0.00053656,2]
[312825977,1706302250214,-150.0,0.00053674,7]
[312825978,1706302250223,-150.0,0.00053678,7]
[312825979,1706302250233,-4324.0,0.0005369,2]
[312825980,1706302250242,-773.0,0.0005369,3]
[312825981,1706302250251,-1335.0,0.0005369,2]
[312825982,1706302250261,-213.0,0.0005369,3]
[312825983,1706302250271,-38612.224367,0.00053693,2]
[312825984,1706302250282,-2128.496071,0.00053693,2]
[312825985,1706302250293,-12173.65691264,0.00053693,2]
[312825986,1706302250515,-22432.16427626,0.00053693,2]
[312825987,1706302250528,-165.4,0.000537,30]
[312825988,1706302250539,-1500.0,0.00053709,7]
[312825989,1706302250550,-1538.7224,0.0005373,3]
[312825990,1706302250560,-2000.0,0.0005373,3]
[312825991,1706302250572,-151.0,0.0005373,14]
[312825992,1706302250582,-991.404627,0.0005373,14]
[312825993,1706302250593,-151.0,0.0005373,14]
[312825994,1706302250603,-991.404627,0.0005373,14]
[312825995,1706302250614,-300.0,0.00053745,7]
[312825996,1706302250625,-5000.0,0.0005375,120]
[312825997,1706302250636,-150.0,0.00053755,30]
[312825998,1706302250647,-150.0,0.0005376,7]
[312825999,1706302250659,-1500.0,0.00053763,7]
[312826000,1706302250670,-150.0,0.00053763,7]
[312826001,1706302250682,-150.0,0.00053767,7]
[312826002,1706302250694,-25537.60872217,0.00053787,30]
[312826003,1706302250708,-772.48436816,0.00053787,30]
[312826004,1706302250726,-9331.58480954,0.00053787,30]
[312826005,1706302250739,-556.54212966,0.00053787,30]
[312826006,1706302250754,-3978.1,0.00053787,30]
[312826007,1706302250768,-1176.9523,0.00053787,30]
[312826008,1706302250782,-369.93113102,0.00053787,30]
[312826009,1706302250801,-348.73721,0.00053787,30]
[312826010,1706302250815,-327.05932945,0.00053787,30]
[312826011,1706302250825,-150.0,0.00053787,7]
[312826012,1706302250836,-1594.269902,0.00053787,14]
[312826013,1706302250847,-1594.269902,0.00053787,14]
[312826014,1706302250857,-193.144534,0.00053787,14]
[312826015,1706302250868,-193.144534,0.00053787,14]
[312826016,1706302250879,-154.187394,0.00053787,14]
[312826017,1706302250889,-154.187394,0.00053787,14]
[312826018,1706302250900,-1500.0,0.00053789,7]
[312826019,1706302250911,-2589.1101345,0.0005379,2]
[312826020,1706302250924,-1504.8898655,0.0005379,2]
[312826021,1706302250935,-2363.0,0.0005379,2]
[312826022,1706302250951,-150.0,0.00053794,7]
[312826023,1706302250962,-300.0,0.00053795,7]
[312826024,1706302250973,-3450.66135239,0.000538,120]
[312826025,1706302250985,-7773.93316344,0.000538,120]
[312826026,1706302251111,-203.0,0.0003,2]
[312826027,1706302251120,-87.00260323,0.00033,2]
[312826028,1706302251132,-115.99739677,0.00033,2]
[312826029,1706302251142,-203.0,0.00036,2]
[312826030,1706302251151,-10433.90179212,0.000538,120]
[312826031,1706302251167,-201.33,0.00046485,10]
[312826032,1706302251177,-298.67,0.000538,120]
[312826033,1706302251190,-500.0,0.000538,120]
[312826034,1706302251357,-1992.57999979,0.000538,120]
[312826035,1706302251369,-286.31000021,0.000538,120]
[312826036,1706302251497,-443.52954868,0.000538,120]
[312826039,1706302312368,1683.0,0.00021,4]
[312826040,1706302312394,2207.89717375,0.00021,4]
[312826041,1706302327282,983.05419481,0.000199,3]
[312826102,1706303431993,-176.9130715,0.00022196,2]
[312826103,1706303432003,-223.3832644,0.00022197,4]
[312826104,1706303432012,-157.39860559,0.00022209,2]
[312826105,1706303432022,-230.26204204,0.00022288,2]
[312826106,1706303432031,-482.28094301,0.00022309,2]
[312826107,1706303432040,-150.0,0.00022895,2]
[312826108,1706303432050,-300.0,0.00022895,2]
[312826109,1706303432059,-364.97410659,0.00022898,2]
[312826110,1706303432068,-200.0,0.00022941,2]
[312826111,1706303432077,-173.2822178,0.00022995,2]
[312826112,1706303432089,-12860.91980354,0.00022995,2]
[312826113,1706303432098,-171.70472139,0.00022996,2]
[312826114,1706303432107,-2377.4,0.00022996,2]
[312826115,1706303432116,-1666.16,0.00022996,2]
[312826116,1706303432126,-349815.48553318,0.00022997,2]
[312826117,1706303432135,-2782.61053922,0.00022998,2]
[312826118,1706303432144,-354.92589321,0.00022998,2]
[312826119,1706303432154,-1070.78652453,0.00022998,2]
[312826120,1706303432164,-244.93518239,0.00022998,2]
[312826121,1706303432174,-15959.40456379,0.00022998,2]
[312826122,1706303432183,-215.26262203,0.00022998,2]
[312826123,1706303432192,-197.75824909,0.00022999,2]
[312826124,1706303432201,-1853.89068505,0.00022999,2]
[312826125,1706303432210,-215655.66150324,0.00023,2]
[312826126,1706303432223,-1292.96276069,0.00023,2]
[312826127,1706303432235,-1127.3767494,0.00023,2]
[312826128,1706303432251,-13587.08764,0.00023,2]
[312826129,1706303432262,-1922.96638505,0.00023,2]
[312826130,1706303432274,-326.43046132,0.00023,2]
[312826132,1706303432285,-7223.56103282,0.00023,2]
[312826135,1706303432308,-8260.0,0.00023,2]
[312826138,1706303432323,-459.75323735,0.00023,2]
[312826140,1706303432334,-18710.60512909,0.00023,2]
[312826145,1706303432346,-62392.55151932,0.00023,2]
[312826147,1706303432357,-3556.76371237,0.00023,2]
[312826149,1706303432368,-948.21495962,0.00023,2]